bitfinex/quotes_ETHUSD_20240716
["timestamp","ask_amount","ask_price","bid_price","bid_amount"]
[1721145808180,0.29985267,3492.3,3492.2,8.752]
[1721145808480,0.29985267,3492.3,3492.2,11.7372]
[1721145808875,0.017,3493.5,3492.4,3.025]
[1721145809125,0.017,3493.5,3492.5,12.6084]
[1721145809316,0.017,3493.5,3492.5,9.0334]
[1721145809476,0.017,3493.5,3492.5,12.0584]
[1721145809678,2.520543,3494.0,3492.6,0.55]
[1721145810030,0.1503181,3495.8,3494.1,0.2872]
[1721145810210,0.1503181,3495.8,3494.9,3.025]
[1721145810377,0.1503181,3495.8,3494.8,2.4929]
[1721145810378,0.1503181,3495.8,3495.0,5.7225]
[1721145810689,0.1503181,3495.8,3495.0,4.38342987]
[1721145810690,1.8503181,3495.8,3495.0,4.38342987]
[1721145810889,0.1503181,3495.8,3495.0,4.38342987]
[1721145812591,1.8503181,3495.8,3495.0,4.38342987]
[1721145812891,1.7,3495.3,3494.0,2.4929]
[1721145813398,1.7,3495.3,3492.8,2.4929]
[1721145813811,1.7,3495.3,3492.9,3.025]
[1721145814022,4.8503181,3495.8,3493.3,3.025]
[1721145814225,0.29972371,3495.2,3493.5,3.025]
[1721145814393,0.29972371,3495.2,3493.7,3.025]
[1721145814595,0.29972371,3495.2,3493.6,5.7248]
[1721145814596,0.44894151,3495.8,3493.9,3.025]
[1721145814816,0.1503181,3495.8,3494.1,3.025]
[1721145815091,0.1503181,3495.8,3494.0,7.38681]
[1721145815092,0.1503181,3495.8,3494.3,5.4027]
[1721145815317,0.1503181,3495.8,3494.5,3.025]
[1721145815500,0.1503181,3495.8,3494.7,3.025]
[1721145815716,0.1503181,3495.8,3494.8,10.17261]
[1721145816531,0.1503181,3495.8,3495.0,3.025]
[1721145816737,0.1503181,3495.8,3495.1,6.2723]
[1721145817031,0.1503181,3495.8,3495.1,5.7223]
[1721145821100,0.1503181,3495.8,3495.2,0.05721485]
[1721145821356,0.1503181,3495.8,3495.3,5.722]
[1721145821548,0.1503181,3495.8,3495.5,2.3172]
[1721145821746,0.1503181,3495.8,3495.6,5.7215]
[1721145822451,0.1503181,3495.8,3495.7,0.05720298]
[1721145822655,0.1503181,3495.8,3495.7,6.75838213]
[1721145822811,0.1503181,3495.8,3495.7,10.69094034]
[1721145823011,0.1503181,3495.8,3495.7,10.14094034]
[1721145823207,0.1503181,3495.8,3495.7,5.7213]
[1721145823966,0.29849072,3497.5,3495.7,6.20838213]
[1721145824259,0.04987272,3497.6,3495.7,6.20838213]
[1721145824472,0.011,3497.8,3495.8,3.27468772]
[1721145824612,0.011,3497.8,3495.9,5.721]
[1721145824817,0.21223733,3497.8,3496.0,3.82697]
[1721145825125,0.21223733,3497.8,3496.1,5.7207]
[1721145825328,0.011,3497.8,3496.2,0.55]
[1721145825524,0.011,3497.8,3496.3,5.7203]
[1721145825855,0.011,3497.8,3496.5,3.025]
[1721145826022,0.011,3497.8,3496.6,8.7448]
[1721145826349,0.011,3497.8,3496.6,5.7198]
[1721145826563,0.011,3497.8,3496.7,0.85343]
[1721145826744,0.011,3497.8,3496.8,5.7195]
[1721145827827,1.7,3497.4,3496.8,5.7195]
[1721145828132,1.711,3497.8,3496.8,5.7195]
[1721145828340,0.011,3497.8,3496.8,5.7195]
[1721145828521,1.7,3497.7,3496.8,5.7195]
[1721145829853,0.011,3497.8,3496.8,5.7195]
[1721145830585,1.7,3497.6,3496.8,5.7195]
[1721145831244,0.011,3497.8,3496.8,5.7195]
[1721145833070,1.711,3497.8,3496.8,5.7195]
[1721145833851,1.7,3497.4,3496.8,5.7195]
[1721145834863,1.7,3497.0,3496.8,5.7195]
[1721145835944,1.7,3496.4,3495.1,2.3533]
[1721145837682,1.7,3496.3,3495.1,2.3533]
[1721145838771,1.7,3496.3,3494.2,5.3457]
[1721145839048,3.0,3496.8,3494.2,2.3207]
[1721145839049,1.7,3495.8,3494.2,2.3207]
[1721145839482,1.7,3496.2,3494.2,2.3207]
[1721145839785,1.7,3495.8,3494.2,2.3207]
[1721145840901,1.7,3496.6,3494.3,3.08223512]
[1721145841178,3.18,3496.8,3494.5,3.025]
[1721145841378,1.7,3496.5,3494.7,3.025]
[1721145841591,1.7,3496.5,3494.8,5.7228]
[1721145841753,2.86016,3496.4,3494.8,5.7228]
[1721145841949,2.4271,3496.9,3494.8,5.7228]
[1721145841950,2.85993,3496.6,3494.8,5.7228]
[1721145842153,0.29861856,3497.0,3494.9,2.3927]
[1721145842353,0.29861856,3497.0,3495.0,5.7225]
[1721145842354,3.15822856,3497.0,3495.0,5.7225]
[1721145842588,0.29861856,3497.0,3495.1,2.3927]
[1721145842832,1.7,3497.3,3495.3,5.3748]
[1721145843089,1.7,3497.7,3495.4,9.85649]
[1721145843290,1.99851801,3497.3,3495.4,9.85649]
[1721145843971,1.99851801,3497.3,3495.5,5.3749]
[1721145844173,1.99851801,3497.3,3495.6,5.7215]
[1721145844699,0.29851801,3497.3,3495.8,3.025]
[1721145844870,1.7,3497.7,3496.0,2.3499]
[1721145845070,1.7,3497.7,3496.1,5.7207]
[1721145847557,1.7,3497.7,3496.2,2.3078]
[1721145847871,1.7,3497.7,3496.3,5.7203]
[1721145848571,1.7,3497.7,3496.4,2.4664]
[1721145848906,1.7,3497.7,3496.5,9.86617]
[1721145849195,1.7,3497.7,3496.6,2.52379137]
[1721145849370,1.7,3497.7,3496.7,5.7197]
[1721145850913,1.7,3496.9,3496.7,5.7197]
[1721145851201,1.7,3496.9,3496.0,2.3329]
[1721145851779,1.7,3496.9,3494.7,3.025]
[1721145851780,4.55968,3496.9,3494.7,3.025]
[1721145852107,3.0,3496.8,3494.8,2.2691]
[1721145852313,3.0,3497.2,3494.9,2.2691]
[1721145852499,2.85928,3497.4,3495.0,5.7224]
[1721145852665,3.0,3497.3,3495.1,3.82415]
[1721145852865,3.0,3497.3,3495.2,5.7221]
[1721145853061,2.85954,3497.1,3495.2,5.7221]
[1721145853297,4.7,3497.0,3495.2,5.7221]
[1721145853606,4.7,3497.0,3495.4,3.018]
[1721145853607,3.0,3497.0,3495.4,3.018]
[1721145853761,1.711,3497.8,3495.9,3.018]
[1721145853964,1.711,3497.8,3496.3,3.018]
[1721145854258,1.711,3497.8,3496.7,3.018]
[1721145854462,1.711,3497.8,3496.8,5.7195]
[1721145855099,1.7,3497.0,3496.8,5.38437304]
[1721145855315,1.87,3496.9,3496.8,5.38437304]
[1721145855604,1.7,3496.4,3495.2,2.2518]
[1721145855975,1.7,3495.9,3495.2,2.2518]
[1721145856594,1.7,3495.9,3495.3,5.7216]
[1721145857575,1.7,3496.3,3495.4,2.4943]
[1721145857776,1.7,3497.4,3495.9,2.4943]
[1721145857987,1.711,3497.8,3496.0,8.7388]
[1721145858173,1.711,3497.8,3496.3,2.2552]
[1721145858375,1.711,3497.8,3496.7,3.018]
[1721145858585,1.711,3497.8,3496.8,5.7195]
[1721145858793,1.711,3497.8,3496.8,9.83677]
[1721145858999,1.711,3497.8,3496.8,6.4122204]
[1721145859306,1.711,3497.8,3496.9,2.2552]
[1721145859509,1.711,3497.8,3497.0,9.1437]
[1721145862021,1.7,3497.2,3497.0,9.1437]
[1721145862921,3.0,3497.5,3497.1,0.30534555]
[1721145863117,1.7,3497.6,3497.1,0.30534555]
[1721145863418,1.7,3497.6,3497.1,1.0720853]
[1721145863794,1.7,3497.6,3497.2,9.1434]
[1721145864003,1.7,3497.6,3497.5,0.30534555]
[1721145865414,1.7,3497.6,3497.5,2.57774555]
[1721145866004,1.7,3497.6,3497.5,11.72064555]
[1721145867231,1.7,3497.6,3497.5,9.44824555]
[1721145868215,1.7,3497.6,3497.5,11.79654555]
[1721145868577,1.7,3497.6,3497.5,9.44824555]
[1721145872018,0.0546014,3498.7,3497.6,5.4667]
[1721145872188,0.0546014,3498.7,3497.8,3.018]
[1721145872386,0.0546014,3498.7,3497.9,12.1602]
[1721145872575,0.0546014,3498.7,3498.1,3.018]
[1721145872780,0.0546014,3498.7,3497.9,9.1422]
[1721145872781,0.0546014,3498.7,3498.2,14.6084]
[1721145873185,0.0546014,3498.7,3498.2,11.5904]
[1721145874836,0.0546014,3498.7,3498.2,9.1417]
[1721145875904,0.0546014,3498.7,3498.6,0.30534555]
[1721145876401,0.0546014,3498.7,3498.6,9.44644555]
[1721145878589,2.9128014,3498.7,3498.6,9.44644555]
[1721145879024,3.0546014,3498.7,3498.6,9.44644555]
[1721145879229,0.0546014,3498.7,3498.6,9.44644555]
[1721145880891,0.50332258,3498.7,3498.6,9.44644555]
[1721145883427,0.0546014,3498.7,3498.6,9.44644555]
[1721145890598,0.0546014,3498.7,3498.6,11.87640799]
[1721145891824,0.0546014,3498.7,3498.6,14.89440799]
[1721145892226,0.0546014,3498.7,3498.6,11.87640799]
[1721145892407,0.0546014,3498.7,3498.6,13.06404879]
[1721145893322,0.0546014,3498.7,3498.6,16.08204879]
[1721145894195,0.994629,3500.0,3498.7,2.3146]
[1721145894396,0.994629,3500.0,3499.0,3.018]
[1721145894738,0.994629,3500.0,3498.9,2.3146]
[1721145894739,0.994629,3500.0,3499.2,3.018]
[1721145895033,0.39222286,3501.2,3499.4,3.018]
[1721145895219,0.39222286,3501.2,3499.6,2.4197]
[1721145895649,1.7,3501.5,3499.7,9.1393]
[1721145895818,0.04977368,3501.6,3499.9,5.4377]
[1721145896151,1.7,3502.2,3500.0,9.1388]
[1721145896359,0.21976335,3502.1,3500.1,1.45765]
[1721145896676,1.7,3501.7,3501.5,0.30320799]
[1721145896950,1.7,3500.6,3500.2,9.1385]
[1721145897151,5.71378,3500.3,3500.2,7.16429015]
[1721145897349,2.451,3500.5,3500.2,7.16429015]
[1721145897550,1.7,3500.6,3500.2,7.16429015]
[1721145897754,3.0,3500.9,3500.2,7.16429015]
[1721145898052,2.85613,3501.3,3500.2,7.16429015]
[1721145898053,4.55592,3501.5,3500.2,7.16429015]
[1721145898252,4.151,3501.9,3500.2,7.16429015]
[1721145898461,2.451,3501.9,3500.2,7.16429015]
[1721145898617,2.451,3501.9,3500.3,0.71642902]
[1721145898820,4.151,3501.9,3500.4,11.112]
[1721145899017,2.451,3501.9,3500.4,11.112]
[1721145899255,1.7,3502.3,3500.4,11.112]
[1721145899659,1.7,3502.3,3500.4,14.13]
[1721145899956,1.7,3501.9,3500.5,1.413]
[1721145900153,1.7,3501.9,3500.6,11.112]
[1721145900655,2.79260714,3502.5,3500.6,11.112]
[1721145901257,0.29850714,3502.5,3500.8,3.018]
[1721145901463,0.29850714,3502.5,3500.9,14.13]
[1721145901616,0.1503181,3502.8,3500.9,14.13]
[1721145901816,1.7,3502.2,3500.9,11.112]
[1721145902161,7.41178,3501.6,3500.9,11.112]
[1721145902458,1.7,3502.0,3500.9,11.112]
[1721145902616,4.55586,3501.6,3500.9,11.112]
[1721145902819,5.85599,3501.5,3500.9,11.112]
[1721145903043,3.0,3501.5,3500.9,11.112]
[1721145903237,3.40601,3501.4,3500.9,11.112]
[1721145903582,9.80734,3501.0,3500.9,11.112]
[1721145903739,2.85674,3500.5,3498.7,2.3103]
[1721145903947,3.0,3500.4,3498.7,2.54133]
[1721145904127,3.0,3500.4,3498.8,3.018]
[1721145904333,3.0,3500.9,3498.9,0.05714525]
[1721145904643,4.0947,3501.8,3499.3,3.018]
[1721145904846,1.7,3501.0,3499.4,5.7154]
[1721145905142,0.44845565,3500.9,3499.4,5.7154]
[1721145905543,0.44845565,3500.9,3499.6,2.4584]
[1721145905866,2.3753,3501.9,3499.7,5.7148]
[1721145906167,2.3753,3501.9,3499.9,3.018]
[1721145906346,2.3753,3501.9,3500.1,3.018]
[1721145906537,2.85,3502.1,3500.4,5.307]
[1721145906729,2.85,3502.1,3500.6,3.018]
[1721145906944,0.049757,3502.4,3500.8,3.018]
[1721145907272,0.049757,3502.4,3501.0,3.018]
[1721145907444,0.049757,3502.4,3501.1,5.7125]
[1721145907647,0.049757,3502.4,3501.2,2.3988]
[1721145907860,0.1503181,3502.8,3501.3,5.7122]
[1721145908263,0.1503181,3502.8,3501.5,3.018]
[1721145908548,0.1503181,3502.8,3501.7,3.018]
[1721145908763,0.1503181,3502.8,3501.6,6.83031053]
[1721145908764,0.1503181,3502.8,3501.8,8.1142]
[1721145909679,0.1503181,3502.8,3501.8,5.7113]
[1721145911283,0.1503181,3502.8,3502.0,3.018]
[1721145911485,0.1503181,3502.8,3502.1,5.7109]
[1721145912346,0.1503181,3502.8,3502.2,3.018]
[1721145912547,0.1503181,3502.8,3501.9,2.422]
[1721145912548,0.1503181,3502.8,3502.3,5.7105]
[1721145914576,3.1503181,3502.8,3502.3,5.7105]
[1721145914745,1.8503181,3502.8,3499.9,2.4985]
[1721145915064,2.85576,3501.7,3499.9,2.4985]
[1721145915386,5.8559,3501.6,3499.9,2.4985]
[1721145915588,5.8559,3501.6,3500.0,0.55165]
[1721145915589,3.0,3501.6,3500.0,0.55165]
[1721145915799,5.3756,3501.8,3500.0,5.7131]
[1721145915951,3.0,3501.8,3500.0,5.7131]
[1721145916145,5.85537,3502.2,3500.0,5.7131]
[1721145916350,2.8556,3501.9,3500.0,5.7131]
[1721145916697,3.55,3501.8,3500.0,5.7131]
[1721145916862,0.55,3501.8,3500.0,5.7131]
[1721145917067,2.85601,3501.4,3500.0,5.7131]
[1721145917451,3.0,3501.3,3500.0,5.7131]
[1721145918067,2.8559,3501.6,3500.0,5.7131]
[1721145918302,6.40592,3501.5,3500.0,5.7131]
[1721145918689,2.4859,3501.4,3500.0,5.7131]
[1721145918896,3.40615,3501.3,3500.0,5.7131]
[1721145919210,2.85673,3500.6,3500.0,5.7131]
[1721145919577,3.0,3500.5,3500.0,5.7131]
[1721145919899,2.85641,3500.9,3500.0,5.7131]
[1721145920114,3.0,3500.8,3500.0,5.7131]
[1721145920474,2.85659,3500.7,3500.0,5.7131]
[1721145920711,5.85665,3500.6,3500.0,5.7131]
[1721145920883,2.85665,3500.6,3500.0,5.7131]
[1721145921066,3.0,3500.5,3500.0,5.7131]
[1721145921266,2.85664,3500.7,3500.0,5.7131]
[1721145921467,3.0,3500.6,3500.0,5.7131]
[1721145921667,5.85666,3500.6,3500.0,5.7131]
[1721145921908,2.85706,3500.1,3500.0,5.7131]
[1721145922080,5.85706,3500.1,3500.0,5.7131]
[1721145922284,9.26412,3500.1,3500.0,5.7131]
[1721145922494,2.85717,3500.0,3498.2,2.4361]
[1721145922794,2.85732,3499.8,3498.3,0.24361]
[1721145923002,3.0,3499.7,3498.2,2.4361]
[1721145923610,3.0,3499.8,3498.2,2.4361]
[1721145923788,3.0,3499.8,3497.7,3.018]
[1721145923789,2.3643,3499.9,3497.7,3.018]
[1721145924108,2.85734,3499.8,3497.7,3.3198]
[1721145924304,1.7,3499.6,3497.3,3.018]
[1721145924620,2.8578,3499.2,3497.3,3.018]
[1721145924771,2.85764,3499.4,3497.3,3.018]
[1721145925107,3.55,3499.3,3497.3,3.018]
[1721145925308,0.55,3499.3,3497.4,0.53426]
[1721145925495,3.0,3499.2,3497.4,0.53426]
[1721145925879,3.0,3499.2,3497.5,3.018]
[1721145926085,2.85738,3499.8,3497.5,3.018]
[1721145926415,6.40739,3499.7,3497.7,3.018]
[1721145926752,4.30554749,3501.8,3498.1,3.018]
[1721145926753,2.4331,3500.7,3498.1,3.018]
[1721145926895,2.4331,3500.7,3498.3,3.018]
[1721145927086,5.70648,3500.9,3498.5,3.018]
[1721145927282,4.55671,3500.6,3498.7,3.018]
[1721145927491,4.55671,3500.6,3498.8,5.7162]
[1721145927492,4.55666,3500.6,3498.8,5.7162]
[1721145927703,2.8569,3500.3,3498.8,5.7162]
[1721145928078,2.85708,3500.1,3498.8,5.7162]
[1721145928713,2.85738,3499.7,3498.8,5.7162]
[1721145929021,3.0,3499.6,3498.8,5.7162]
[1721145929509,0.04985107,3500.0,3498.8,5.7162]
[1721145929510,2.85739,3499.7,3498.8,5.7162]
[1721145929703,3.0,3499.6,3498.8,5.7162]
[1721145930009,5.85748,3499.6,3498.8,5.7162]
[1721145930369,2.85761,3499.5,3498.8,5.7162]
[1721145930574,6.40765,3499.4,3498.8,5.7162]
[1721145930775,0.55,3499.4,3498.8,5.7162]
[1721145931007,0.55,3499.5,3498.8,5.7162]
[1721145931221,2.85763,3499.4,3498.8,5.7162]
[1721145931512,3.0,3499.3,3498.8,5.7162]
[1721145931809,1.7,3499.0,3498.8,5.7162]
[1721145932132,2.85804,3498.9,3498.8,5.7162]
[1721145932282,6.40804,3498.9,3498.8,5.7162]
[1721145933230,9.26608,3498.9,3498.8,5.7162]
[1721145934316,12.12412,3498.9,3498.8,5.3589375]
[1721145934528,9.26608,3498.9,3498.8,5.3589375]
[1721145934704,9.26608,3498.9,3497.0,0.25]
[1721145934705,2.85849,3498.4,3497.0,0.25]
[1721145934908,6.40855,3498.3,3497.0,0.25]
[1721145935128,2.4669,3498.1,3497.0,0.25]
[1721145935339,0.55,3498.0,3497.0,0.25]
[1721145935640,3.55,3498.0,3497.0,0.25]
[1721145936016,2.85891,3497.9,3497.0,0.25]
[1721145936212,3.55,3498.0,3497.0,0.25]
[1721145936213,3.0,3497.8,3497.0,0.25]
[1721145936441,3.0,3498.0,3497.0,0.25]
[1721145936641,5.4669,3498.9,3497.0,0.25]
[1721145936799,5.70758,3499.5,3497.1,2.3188]
[1721145937003,2.85776,3499.3,3497.2,3.27488]
[1721145937244,1.7,3499.2,3497.2,0.25688]
[1721145937448,2.85803,3499.0,3497.2,0.25688]
[1721145937743,2.85,3499.5,3497.1,2.3188]
[1721145937744,2.85825,3498.7,3497.1,2.3188]
[1721145937907,2.85793,3499.1,3497.1,2.3188]
[1721145938103,3.18,3499.4,3497.1,2.37598128]
[1721145938304,3.14902428,3499.7,3497.4,3.018]
[1721145938538,3.14902428,3499.7,3497.7,3.018]
[1721145938708,6.00642428,3499.7,3497.8,3.55168]
[1721145939043,2.85749,3499.6,3497.8,3.55168]
[1721145939335,2.85749,3499.6,3497.8,0.53368]
[1721145939542,3.14902428,3499.7,3497.7,3.018]
[1721145939704,3.0,3499.6,3497.7,3.018]
[1721145939905,3.14902428,3499.7,3498.1,3.018]
[1721145939906,0.29902428,3499.7,3498.1,3.018]
[1721145940107,2.85663,3500.7,3498.4,3.018]
[1721145940455,0.29887766,3500.6,3498.6,3.018]
[1721145940759,0.04983083,3501.2,3498.8,3.018]
[1721145941045,0.29880048,3501.3,3499.0,3.018]
[1721145941245,0.29880048,3501.3,3499.2,3.018]
[1721145941418,2.85592,3501.5,3499.2,3.018]
[1721145941621,0.29879202,3501.4,3499.1,2.3188]
[1721145941957,2.85616,3501.2,3499.1,2.55068]
[1721145942254,2.85641,3500.9,3499.1,2.55068]
[1721145942546,2.85671,3500.6,3499.1,2.3188]
[1721145942748,2.85683,3500.4,3499.1,2.3188]
[1721145942957,0.55,3500.3,3499.1,2.3188]
[1721145943442,3.55,3500.3,3499.1,2.3188]
[1721145943660,3.0,3500.2,3498.4,2.4359]
[1721145943811,3.0,3500.2,3498.4,2.98129]
[1721145944345,3.0,3500.2,3498.5,5.7154]
[1721145944552,1.7,3501.6,3498.6,5.4539]
[1721145944852,2.85617,3501.2,3498.8,3.018]
[1721145945051,5.72204989,3502.0,3498.4,0.54539]
[1721145945052,2.85577,3501.7,3499.0,3.018]
[1721145945211,4.1914,3502.0,3499.2,3.018]
[1721145945542,2.85598,3501.5,3499.3,5.7154]
[1721145945715,3.15479202,3501.4,3499.3,5.7154]
[1721145945920,3.15485202,3501.4,3499.4,1.12205]
[1721145946135,0.29879202,3501.4,3499.5,5.7151]
[1721145946340,0.29879202,3501.4,3499.6,3.018]
[1721145946509,0.29879202,3501.4,3500.0,3.018]
[1721145946709,0.29879202,3501.4,3500.1,8.7321]
[1721145946929,0.29879202,3501.4,3500.3,3.018]
[1721145947161,0.29879202,3501.4,3500.4,5.7136]
[1721145950639,3.29879202,3501.4,3500.4,5.7136]
[1721145951142,3.0,3501.3,3500.4,5.7136]
[1721145951348,0.29879202,3501.4,3500.4,5.7136]
[1721145952321,3.40608,3501.3,3500.4,5.7136]
[1721145952515,3.0,3501.2,3500.4,5.7136]
[1721145952925,3.4061,3501.3,3500.4,5.7136]
[1721145953135,3.0,3501.2,3500.4,5.7136]
[1721145953364,3.29879202,3501.4,3500.4,5.7136]
[1721145953661,3.0,3501.3,3500.4,5.7136]
[1721145953963,0.29879202,3501.4,3500.5,0.57136]
[1721145954121,0.29879202,3501.4,3500.6,5.7133]
[1721145955160,0.29879202,3501.4,3500.7,5.3467]
[1721145955331,0.005,3502.3,3500.9,3.018]
[1721145955652,0.005,3502.3,3501.0,8.7307]
[1721145955971,0.005,3502.3,3501.1,0.87307]
[1721145956259,0.005,3502.3,3501.2,8.7303]
[1721145956820,0.005,3502.3,3501.2,5.7123]
[1721145959229,2.85551,3502.0,3501.2,5.7123]
[1721145959454,6.4056,3501.9,3501.2,5.7123]
[1721145959764,3.55,3501.9,3501.2,5.7123]
[1721145959963,3.0,3501.8,3501.2,5.7123]
[1721145960459,2.85544,3502.1,3501.2,5.7123]
[1721145960659,2.85564,3501.9,3501.2,5.7123]
[1721145960851,0.55,3501.8,3501.2,5.7123]
[1721145961026,3.0,3501.8,3501.2,5.7123]
[1721145961227,3.005,3502.3,3501.2,5.7123]
[1721145961461,0.005,3502.3,3501.2,5.7123]
[1721145961664,0.005,3502.3,3501.3,2.4099]
[1721145961965,0.005,3502.3,3501.4,5.712]
[1721145965856,0.005,3502.3,3501.4,6.52419]
[1721145967477,0.005,3502.3,3501.4,5.712]
[1721145969952,0.005,3502.3,3501.4,8.73]
[1721145974180,0.005,3502.3,3501.4,8.73]
[1721145974387,0.005,3502.3,3501.7,3.018]
[1721145974599,0.005,3502.3,3501.9,3.018]
[1721145974889,0.005,3502.3,3502.1,3.018]
[1721145975057,0.005,3502.3,3502.2,9.0305]
[1721145975257,0.005,3502.3,3502.2,6.0125]
[1721145975458,0.005,3502.3,3502.2,5.7107]
[1721145980827,0.005,3502.3,3502.2,11.0653]
[1721145981424,0.005,3502.3,3502.2,8.0473]
[1721145982314,0.005,3502.3,3502.2,5.7107]
[1721145985139,6.41026,3502.3,3502.2,5.7107]
[1721145985487,3.555,3502.3,3502.2,5.7107]
[1721145985833,0.005,3502.3,3502.2,5.7107]
[1721145987040,0.005,3502.3,3502.2,8.2088]
[1721145987336,0.005,3502.3,3502.2,5.7107]
[1721145987484,2.86026,3502.3,3502.2,5.7107]
[1721145987689,5.71552,3502.3,3502.2,5.7107]
[1721145988056,6.99821482,3502.3,3502.2,4.58207016]
[1721145988334,9.26552,3502.3,3502.2,4.58207016]
[1721145988502,2.85602,3501.4,3499.1,2.4074]
[1721145988699,2.3029,3501.7,3499.2,0.24074]
[1721145988896,0.55,3501.6,3499.2,0.24074]
[1721145989136,2.3029,3501.7,3499.4,3.018]
[1721145989137,3.0,3501.7,3499.4,3.018]
[1721145989289,3.50162926,3502.2,3499.6,3.018]
[1721145989486,3.0,3502.2,3499.9,2.4074]
[1721145989701,3.0,3502.2,3500.0,3.018]
[1721145989904,2.3079,3502.3,3500.2,2.4074]
[1721145989905,0.005,3502.3,3500.2,2.4074]
[1721145990088,0.005,3502.3,3500.5,3.018]
[1721145990397,0.005,3502.3,3499.7,0.54254]
[1721145990398,0.005,3502.3,3500.8,2.4074]
[1721145990626,0.005,3502.3,3500.9,5.7128]
[1721145991223,1.7,3502.2,3500.9,5.7128]
[1721145991422,2.85584,3501.6,3500.9,5.7128]
[1721145991827,0.55,3501.5,3500.9,5.7128]
[1721145992128,3.0,3502.0,3500.9,5.7128]
[1721145992293,2.85598,3501.5,3500.9,5.7128]
[1721145992490,6.40601,3501.4,3500.9,5.7128]
[1721145993535,2.85617,3501.2,3500.9,5.7128]
[1721145993744,8.01554,3501.0,3500.9,5.7128]
[1721145994057,2.85697,3500.3,3498.8,2.4074]
[1721145994350,0.55,3500.2,3498.8,2.4074]
[1721145994496,6.40698,3500.2,3498.8,2.4074]
[1721145994696,2.85706,3500.1,3498.8,2.4074]
[1721145994935,3.55,3500.0,3498.8,2.4074]
[1721145995153,3.0,3500.0,3498.8,2.64814]
[1721145995308,3.0,3501.0,3498.8,5.66614]
[1721145995737,2.85644,3500.9,3498.8,2.64814]
[1721145995900,5.85617,3501.2,3498.8,2.4074]
[1721145995901,3.0,3500.8,3498.8,2.4074]
[1721145996235,2.85673,3500.5,3498.8,2.4074]
[1721145996538,2.85699,3500.2,3498.8,2.4074]
[1721145996743,3.0,3500.1,3498.8,2.4074]
[1721145997038,3.55,3500.1,3498.8,2.4074]
[1721145997846,3.55,3500.1,3497.8,2.4074]
[1721145998012,2.85723,3499.9,3497.9,0.72034]
[1721145998205,0.55,3499.8,3498.0,0.05716635]
[1721145998398,0.55,3499.8,3497.9,0.72034]
[1721145998604,3.55,3499.8,3497.9,0.72034]
[1721145998822,3.55,3499.8,3498.0,0.614574]
[1721145999105,6.40731,3499.8,3498.0,0.614574]
[1721145999302,2.85747,3499.6,3497.8,2.4074]
[1721145999517,6.40756,3499.5,3497.8,2.4074]
[1721145999710,2.85756,3499.5,3497.8,2.4074]
[1721146000008,6.40764,3499.4,3497.8,2.4074]
[1721146000216,2.85778,3499.3,3497.8,2.4074]
[1721146000416,3.55,3499.2,3497.8,2.4074]
[1721146000957,3.0,3499.4,3497.8,2.4074]
[1721146001103,3.0,3499.1,3497.9,0.24074]
[1721146001303,3.0,3499.4,3498.0,0.0571697]
[1721146001541,2.85738,3499.8,3497.9,0.24074]
[1721146001744,2.85752,3499.6,3497.9,0.24074]
[1721146001901,2.85763,3499.5,3497.8,2.4074]
[1721146002235,2.85779,3499.2,3497.8,2.4074]
[1721146002436,2.85803,3499.0,3497.8,2.4074]
[1721146002635,2.85827,3498.7,3497.1,2.2522]
[1721146002938,6.40829,3498.6,3497.1,2.2522]
[1721146003445,2.85854,3498.3,3497.1,2.2522]
[1721146003611,3.0,3498.2,3497.1,2.2522]
[1721146003811,2.85853,3498.3,3497.1,2.2522]
[1721146004114,3.55,3498.2,3496.5,2.4278]
[1721146004319,0.55,3498.2,3496.5,2.4278]
[1721146004517,0.55,3498.3,3496.5,2.4278]
[1721146005024,2.85891,3497.9,3496.5,2.4278]
[1721146005231,3.55,3497.8,3496.5,2.4278]
[1721146005630,3.0,3497.7,3496.6,0.0571892]
[1721146005817,3.0,3498.4,3496.6,0.0571892]
[1721146006018,3.0,3498.4,3496.5,2.4278]
[1721146006019,3.0,3498.4,3497.1,2.3003]
[1721146006227,3.0,3498.4,3497.2,0.25503]
[1721146006445,3.0,3499.2,3497.2,0.25503]
[1721146006647,2.85793,3499.1,3497.2,0.25503]
[1721146006818,2.85804,3498.9,3497.1,2.3003]
[1721146007148,2.85829,3498.6,3497.1,2.3003]
[1721146007311,2.85843,3498.5,3497.1,2.3003]
[1721146007507,3.0,3498.4,3497.1,2.3003]
[1721146007711,5.85845,3498.4,3497.1,2.3003]
[1721146007920,0.55,3498.3,3497.1,2.3003]
[1721146008120,3.0,3498.6,3497.1,2.55533]
[1721146008329,0.55,3498.5,3497.1,2.3003]
[1721146008656,0.04986544,3498.8,3497.1,2.3003]
[1721146009475,2.90799544,3498.8,3497.1,2.3003]
[1721146009624,3.0,3498.7,3497.1,2.3003]
[1721146009947,2.85844,3498.5,3497.1,2.3003]
[1721146010156,3.55,3498.4,3497.1,2.3003]
[1721146010476,3.0,3498.5,3497.1,2.3003]
[1721146010624,0.55,3498.4,3497.1,2.55533]
[1721146010825,0.04986544,3498.8,3497.3,2.3511]